bitfinex/quotes_SOLUSD_20250622
["timestamp","ask_amount","ask_price","bid_price","bid_amount"]
[1750626552953,21.39863075,129.68,129.67,8.38]
[1750626553363,40.78827961,129.68,129.67,8.38]
[1750626553565,40.78827961,129.68,129.64,26.0]
[1750626553764,21.39863075,129.66,129.65,26.0]
[1750626553970,21.39863075,129.66,129.63,32.48]
[1750626554145,21.39863075,129.66,129.62,8.38]
[1750626554475,21.39863075,129.65,129.62,16.09467645]
[1750626554782,21.39863075,129.64,129.62,34.38]
[1750626555075,21.39863075,129.63,129.62,8.38]
[1750626555254,22.07863075,129.63,129.62,8.38]
[1750626556150,22.07863075,129.63,129.57,40.84]
[1750626556369,22.07863075,129.63,129.58,21.39863075]
[1750626556560,0.68,129.63,129.59,26.0]
[1750626556764,0.68,129.68,129.63,26.0]
[1750626556968,21.39863075,129.7,129.65,21.39863075]
[1750626557182,21.39863075,129.69,129.64,8.38]
[1750626557352,22.07863075,129.69,129.64,29.77863075]
[1750626557751,21.39863075,129.68,129.64,29.77863075]
[1750626558180,0.68,129.69,129.65,29.1117044]
[1750626558382,22.99383075,129.71,129.67,47.39863075]
[1750626559373,1.5952,129.71,129.67,26.0]
[1750626559669,22.99383075,129.71,129.67,26.0]
[1750626560062,21.39863075,129.7,129.67,26.0]
[1750626560466,22.99383075,129.71,129.67,33.71138649]
[1750626560680,21.39863075,129.7,129.67,33.71138649]
[1750626561181,21.39863075,129.68,129.67,26.0]
[1750626561785,21.39863075,129.68,129.64,16.09359799]
[1750626561968,22.07863075,129.67,129.66,26.0]
[1750626562365,22.07863075,129.67,129.64,8.38]
[1750626562565,21.39863075,129.65,129.64,8.38]
[1750626562784,22.07863075,129.65,129.6,7.71585699]
[1750626562970,21.39863075,129.64,129.63,26.0]
[1750626563173,21.39863075,129.64,129.6,29.11448774]
[1750626563486,21.39863075,129.64,129.6,7.71585699]
[1750626563664,21.39863075,129.65,129.62,26.0]
[1750626563862,21.39863075,129.65,129.61,21.39863075]
[1750626564070,8.57610124,129.64,129.6,29.11448774]
[1750626564295,8.57610124,129.64,129.63,26.0]
[1750626564685,8.57610124,129.64,129.63,33.71426367]
[1750626566390,8.57610124,129.64,129.63,26.0]
[1750626566556,8.57610124,129.64,129.63,55.11289442]
[1750626566960,7.57610124,129.64,129.63,62.07779442]
[1750626567267,7.57610124,129.64,129.63,61.56779442]
[1750626568181,7.57610124,129.64,129.63,80.21744328]
[1750626569779,7.57610124,129.64,129.63,112.69744328]
[1750626570898,7.297,129.74,129.63,131.98310246]
[1750626571099,21.39863075,129.73,129.69,47.39863075]
[1750626571294,9.27259409,129.73,129.69,88.17863075]
[1750626571675,9.27259409,129.73,129.7,21.39863075]
[1750626571986,9.27259409,129.73,129.7,7.71010023]
[1750626572295,9.27259409,129.73,129.7,29.10873098]
[1750626572989,9.27259409,129.73,129.72,26.0]
[1750626576878,9.27259409,129.73,129.72,33.7089115]
[1750626577075,8.59259409,129.73,129.72,26.0]
[1750626577301,8.59259409,129.73,129.72,55.10754225]
[1750626577603,8.59259409,129.73,129.72,33.7089115]
[1750626580287,8.59259409,129.73,129.72,55.10754225]
[1750626581389,8.59259409,129.73,129.72,33.7089115]
[1750626581591,29.99122484,129.73,129.68,7.71128932]
[1750626581777,22.07863075,129.71,129.69,32.44]
[1750626581979,22.07863075,129.71,129.68,16.01104474]
[1750626582174,8.64476721,129.72,129.7,21.39863075]
[1750626582384,8.64476721,129.72,129.71,53.83863075]
[1750626582793,8.64476721,129.72,129.71,32.44]
[1750626582976,0.68,129.71,129.68,16.01123749]
[1750626583175,22.07863075,129.69,129.68,8.3]
[1750626583776,0.68,129.69,129.68,8.3]
[1750626583999,22.07863075,129.69,129.68,8.3]
[1750626584796,0.68,129.69,129.68,8.3]
[1750626585003,22.07863075,129.69,129.68,8.3]
[1750626589610,0.73,129.71,129.68,8.3]
[1750626590293,22.12863075,129.71,129.68,8.3]
[1750626590796,10.26386721,129.72,129.68,8.3]
[1750626590797,22.12863075,129.7,129.68,8.3]
[1750626591107,22.12863075,129.69,129.68,8.3]
[1750626591626,22.12863075,129.69,129.66,33.71236529]
[1750626591627,40.04827961,129.69,129.63,8.3]
[1750626591911,22.12863075,129.67,129.66,26.0]
[1750626592489,0.73,129.67,129.66,26.0]
[1750626592690,0.73,129.68,129.66,26.0]
[1750626593822,22.12863075,129.68,129.66,26.0]
[1750626594399,0.73,129.67,129.66,26.0]
[1750626595000,22.12863075,129.68,129.67,26.0]
[1750626595420,22.12863075,129.68,129.64,32.42]
[1750626595628,22.12863075,129.66,129.65,26.0]
[1750626595925,0.73,129.66,129.65,26.0]
[1750626596132,22.12863075,129.66,129.65,26.0]
[1750626596798,22.12863075,129.66,129.63,8.3]
[1750626597122,22.12863075,129.64,129.63,8.3]
[1750626599001,0.73,129.63,129.59,26.0]
[1750626599220,21.39863075,129.61,129.59,26.0]
[1750626599527,22.12863075,129.61,129.59,26.0]
[1750626599700,22.12863075,129.61,129.58,8.24]
[1750626600211,21.39863075,129.61,129.58,8.24]
[1750626600520,0.73,129.6,129.58,8.24]
[1750626600705,0.73,129.64,129.59,21.39863075]
[1750626600906,0.73,129.62,129.59,21.39863075]
[1750626601109,0.73,129.62,129.58,37.3558257]
[1750626601310,22.12863075,129.6,129.58,8.24]
[1750626601508,0.73,129.6,129.58,8.24]
[1750626602123,21.39863075,129.62,129.58,15.95719345]
[1750626602324,0.73,129.61,129.58,15.95719345]
[1750626602631,0.73,129.62,129.58,37.3558242]
[1750626602839,0.73,129.6,129.58,8.24]
[1750626603128,0.73,129.59,129.58,8.24]
[1750626606814,0.73,129.62,129.58,37.35580403]
[1750626607010,0.73,129.64,129.6,21.39863075]
[1750626607225,0.73,129.63,129.59,47.39863075]
[1750626607420,22.12863075,129.65,129.6,21.39863075]
[1750626607611,21.39863075,129.65,129.6,21.39863075]
[1750626607802,0.73,129.64,129.6,21.39863075]
[1750626608023,0.73,129.64,129.61,21.39863075]
[1750626608531,21.39863075,129.64,129.6,21.39863075]
[1750626608709,0.73,129.63,129.6,21.39863075]
[1750626608911,0.73,129.61,129.6,26.0]
[1750626609425,21.39863075,129.61,129.58,8.24]
[1750626609632,0.73,129.58,129.53,37.35861872]
[1750626609822,21.39863075,129.55,129.53,8.24]
[1750626610010,21.39863075,129.58,129.53,37.35883673]
[1750626610205,0.73,129.58,129.54,21.39863075]
[1750626610415,0.73,129.58,129.55,29.11726178]
[1750626610625,21.39863075,129.6,129.56,21.39863075]
[1750626610933,0.73,129.59,129.56,21.39863075]
[1750626611440,21.39863075,129.61,129.56,21.39863075]
[1750626611441,21.39863075,129.61,129.56,58.42]
[1750626611647,0.73,129.59,129.58,26.0]
[1750626615114,0.73,129.59,129.56,21.39863075]
[1750626615821,0.73,129.59,129.56,29.11699444]
[1750626616015,0.73,129.59,129.56,21.39863075]
[1750626617135,0.73,129.59,129.55,33.71879792]
[1750626617328,0.72,129.58,129.57,26.0]
[1750626618012,0.72,129.58,129.55,55.11753077]
[1750626618511,0.72,129.58,129.55,29.11753077]
[1750626618711,0.72,129.58,129.55,21.39863075]
[1750626619231,0.72,129.58,129.55,29.11760325]
[1750626619942,0.72,129.58,129.56,21.39863075]
[1750626620124,0.72,129.58,129.55,29.11760325]
[1750626623533,0.72,129.58,129.56,21.39863075]
[1750626623745,0.72,129.6,129.56,21.39863075]
[1750626623949,8.7149,129.62,129.58,21.39863075]
[1750626624108,0.72,129.59,129.57,58.4]
[1750626624310,0.72,129.59,129.56,7.71819187]
[1750626624311,0.72,129.59,129.56,33.71819187]
[1750626624537,0.72,129.59,129.56,55.11682262]
[1750626625538,0.72,129.59,129.56,26.0]
[1750626625741,22.11863075,129.59,129.56,33.71838293]
[1750626626138,0.72,129.59,129.56,33.71838293]
[1750626627041,22.11863075,129.59,129.56,33.71838449]
[1750626627212,0.72,129.59,129.56,33.71838449]
[1750626627614,0.72,129.59,129.56,55.11701524]
[1750626628142,0.72,129.59,129.56,33.71838449]
[1750626628915,22.11863075,129.59,129.56,26.0]
[1750626629122,0.72,129.59,129.56,26.0]
[1750626630140,0.72,129.59,129.56,55.11701356]
[1750626632840,0.72,129.59,129.56,26.0]
[1750626635054,0.72,129.59,129.56,38.07549565]
[1750626635348,0.72,129.59,129.56,12.07549565]
[1750626635553,0.72,129.59,129.55,52.19417946]
[1750626637251,12.07549565,129.57,129.54,26.0]
[1750626637552,12.07549565,129.55,129.5,20.27549565]
[1750626637722,0.72,129.53,129.5,34.2]
[1750626638320,0.72,129.53,129.5,20.27549565]
[1750626638524,20.54839565,129.56,129.51,12.07549565]
[1750626638739,0.72,129.55,129.51,12.07549565]
[1750626639656,0.72,129.55,129.52,7.72081531]
[1750626639831,0.72,129.55,129.52,19.79631096]
[1750626640037,8.4729,129.56,129.52,7.72081531]
[1750626640647,8.4729,129.56,129.52,29.20015876]
[1750626641032,8.4729,129.56,129.52,7.72081531]
[1750626641245,8.4729,129.56,129.52,29.20015876]
[1750626641638,8.4729,129.56,129.52,7.72081531]
[1750626641941,22.19934345,129.54,129.51,7.72115479]
[1750626642141,0.72,129.54,129.51,7.72115479]
[1750626642339,0.72,129.55,129.51,29.20049824]
[1750626642538,29.23224345,129.56,129.52,21.47934345]
[1750626642539,29.95224345,129.56,129.52,21.47934345]
[1750626642741,8.4729,129.56,129.52,21.47934345]
[1750626643054,0.72,129.55,129.51,29.20049824]
[1750626643256,22.19934345,129.55,129.51,29.20049824]
[1750626644257,22.19934345,129.52,129.45,7.72499034]
[1750626644455,0.72,129.53,129.46,29.67934345]
[1750626644659,0.72,129.51,129.47,21.47934345]
[1750626645359,0.72,129.55,129.49,21.47934345]
[1750626645558,0.72,129.55,129.47,32.38]
[1750626645559,0.72,129.54,129.5,47.47934345]
[1750626645769,0.72,129.54,129.5,79.85934345]
[1750626645980,0.72,129.54,129.51,21.47934345]
[1750626646262,0.72,129.54,129.51,29.20075492]
[1750626646469,8.4729,129.56,129.52,21.47934345]
[1750626647857,1.5675,129.56,129.53,21.47934345]
[1750626648249,40.84899231,129.58,129.54,21.47934345]
[1750626648452,40.12899231,129.58,129.54,21.47934345]
[1750626648754,0.72,129.57,129.53,29.19912496]
[1750626649058,0.72,129.55,129.52,37.40001477]
[1750626650262,0.72,129.55,129.52,29.67934345]
[1750626650439,22.19934345,129.53,129.52,8.2]
[1750626650643,23.85284345,129.53,129.52,8.2]
[1750626650847,22.19934345,129.56,129.52,8.2]
[1750626651064,0.72,129.55,129.52,8.2]
[1750626654054,23.13284345,129.56,129.52,8.2]
[1750626654249,21.47934345,129.55,129.52,8.2]
[1750626654456,22.19934345,129.53,129.52,8.2]
[1750626654855,22.19934345,129.53,129.47,37.40294707]
[1750626654856,19.36964886,129.52,129.47,37.40294707]
[1750626655071,21.47934345,129.51,129.47,63.40294707]
[1750626655273,22.19934345,129.51,129.47,63.40294707]
[1750626655858,0.72,129.51,129.47,63.40294707]
[1750626656065,0.72,129.52,129.48,21.47934345]
[1750626656567,0.72,129.52,129.49,21.47934345]
[1750626656963,6.5222,129.53,129.5,21.47934345]
[1750626657469,7.2422,129.53,129.5,29.20118539]
[1750626658344,7.2422,129.53,129.5,7.72184194]
[1750626658766,7.2422,129.53,129.5,29.20118539]
[1750626659958,7.2422,129.53,129.5,26.0]
[1750626660159,7.2422,129.53,129.5,47.47934345]
[1750626660361,7.2422,129.53,129.5,26.0]
[1750626661676,7.2422,129.53,129.5,25.0]
[1750626662461,7.2422,129.53,129.5,7.7220021]
[1750626663579,7.2422,129.53,129.52,26.0]
[1750626663957,18.60871144,129.53,129.47,20.28651144]
[1750626664168,12.08651144,129.5,129.47,8.2]
[1750626664369,12.80651144,129.49,129.47,8.2]
[1750626664570,0.72,129.49,129.47,34.2]
[1750626664957,0.72,129.49,129.47,41.92375232]
[1750626665161,0.72,129.49,129.47,34.2]
[1750626665567,0.72,129.48,129.47,34.2]
[1750626667092,0.72,129.48,129.47,8.2]
[1750626667880,1.5601,129.5,129.47,28.01011426]
[1750626668082,1.5601,129.5,129.48,12.08651144]
[1750626669686,2.2355,129.54,129.49,12.08651144]
[1750626669987,0.72,129.53,129.5,19.80840217]
[1750626670977,2.2355,129.54,129.5,19.80840217]
[1750626671164,1.5155,129.54,129.51,12.08651144]
[1750626671863,1.5155,129.54,129.5,7.72189073]
[1750626672085,2.2355,129.54,129.51,12.08651144]
[1750626672301,2.2355,129.54,129.49,7.72260406]
[1750626672589,2.2355,129.54,129.51,12.08651144]
[1750626672997,1.5155,129.54,129.51,12.08651144]
[1750626673784,1.5155,129.54,129.51,19.8076098]
[1750626674780,2.2055,129.54,129.51,19.8076098]
[1750626675170,0.69,129.53,129.49,7.72260406]
[1750626675473,0.69,129.53,129.49,19.8091155]
[1750626675788,0.69,129.53,129.49,7.72260406]
[1750626676097,0.69,129.53,129.49,19.8091155]
[1750626677969,0.69,129.53,129.5,12.08651144]
[1750626678474,0.69,129.52,129.49,12.08651144]
[1750626679302,6.1871,129.5,129.48,26.0]
[1750626679507,12.77651144,129.49,129.44,69.8518932]
[1750626679796,12.77651144,129.49,129.46,12.08651144]
[1750626679797,0.69,129.49,129.46,12.08651144]
[1750626680491,6.1871,129.5,129.46,12.08651144]
[1750626680696,6.8771,129.5,129.46,12.08651144]
[1750626680899,6.8771,129.5,129.47,12.08651144]
[1750626681098,31.4261603,129.52,129.48,12.08651144]
[1750626681526,0.69,129.51,129.48,12.08651144]
[1750626681684,0.69,129.51,129.47,12.08651144]
[1750626682220,0.69,129.51,129.46,40.06431356]
[1750626682513,0.69,129.5,129.46,44.42651144]
[1750626682730,12.08651144,129.49,129.44,50.04]
[1750626683023,12.77651144,129.47,129.44,50.04]
[1750626683602,12.77651144,129.47,129.42,12.08651144]
[1750626683603,18.27701144,129.47,129.42,12.08651144]
[1750626683904,0.69,129.45,129.41,8.14]
[1750626684091,0.69,129.44,129.41,27.9535853]
[1750626684295,0.69,129.44,129.41,8.14]
[1750626684608,6.8805,129.47,129.43,12.08651144]
[1750626684807,1.525,129.48,129.46,12.08651144]
[1750626685201,0.525,129.48,129.46,12.08651144]
[1750626685410,18.27701144,129.5,129.43,32.34]
[1750626685411,6.1905,129.5,129.47,12.08651144]
[1750626685724,6.8805,129.54,129.47,8.14]
[1750626685927,6.8805,129.54,129.51,12.08651144]
[1750626686515,0.69,129.56,129.5,7.72167792]
[1750626686684,0.69,129.55,129.51,12.08651144]
[1750626687098,0.69,129.55,129.5,7.72167792]
[1750626687287,18.64964886,129.55,129.49,7.72239738]
[1750626687504,19.33964886,129.54,129.48,33.72302063]
[1750626687710,12.77651144,129.53,129.49,12.08651144]
[1750626687918,0.69,129.52,129.49,12.08651144]
[1750626688305,12.08651144,129.52,129.48,12.08651144]
[1750626688495,0.69,129.51,129.48,12.08651144]
[1750626689898,0.69,129.51,129.49,12.08651144]
[1750626690099,2.215,129.53,129.5,12.08651144]
[1750626690300,2.215,129.53,129.51,12.08651144]
[1750626691515,1.525,129.53,129.5,7.72181975]
[1750626691689,0.69,129.55,129.51,12.08651144]
[1750626692010,0.69,129.55,129.52,12.08651144]
[1750626694621,20.30524886,129.56,129.48,31.39444991]
[1750626694622,1.6556,129.56,129.54,12.08651144]
[1750626694827,6.1905,129.57,129.55,12.08651144]
[1750626695419,0.69,129.58,129.55,12.08651144]
[1750626696096,20.22344886,129.59,129.53,8.08]
[1750626696097,1.5738,129.59,129.56,12.08651144]
[1750626696417,1.5738,129.59,129.57,12.08651144]
[1750626696590,6.3765,129.6,129.57,12.08651144]
[1750626697110,0.69,129.62,129.59,12.08651144]
[1750626697308,27.50634886,129.63,129.6,12.08651144]
[1750626697495,7.3306,129.66,129.62,12.08651144]
[1750626697685,7.3306,129.66,129.63,12.08651144]
[1750626697890,7.3306,129.66,129.64,12.08651144]
[1750626698400,0.69,129.66,129.64,12.08651144]
[1750626698607,1.5353,129.67,129.64,12.08651144]
[1750626698997,18.78231144,129.69,129.65,12.08651144]
[1750626699197,0.69,129.68,129.65,12.08651144]
[1750626700191,0.69,129.68,129.65,21.43688719]
[1750626701017,21.43688719,129.66,129.62,21.43688719]
[1750626701206,0.69,129.65,129.62,21.43688719]
[1750626701512,0.69,129.65,129.61,21.43688719]
[1750626703519,22.12688719,129.65,129.6,47.43688719]
[1750626703825,0.69,129.64,129.6,47.43688719]
[1750626704235,22.11688719,129.63,129.59,29.51688719]
[1750626704522,0.68,129.61,129.59,8.08]
[1750626704712,21.43688719,129.61,129.59,8.08]
[1750626704894,40.76653605,129.6,129.54,29.51688719]
[1750626705093,22.11688719,129.58,129.54,8.08]
[1750626705319,0.68,129.58,129.54,8.08]
[1750626705621,22.11688719,129.58,129.54,8.08]
[1750626706424,40.08653605,129.6,129.55,21.43688719]
[1750626706595,0.68,129.6,129.56,21.43688719]
[1750626707794,6.5645,129.61,129.57,21.43688719]
[1750626707994,7.2445,129.61,129.57,21.43688719]
[1750626708297,28.68138719,129.61,129.57,21.43688719]
[1750626708516,7.2445,129.61,129.57,21.43688719]
[1750626708727,28.68138719,129.61,129.57,21.43688719]
[1750626709229,28.68138719,129.61,129.56,7.71819931]
[1750626709522,0.68,129.6,129.57,21.43688719]
[1750626709831,22.11688719,129.58,129.54,8.08]
[1750626710122,22.11688719,129.57,129.54,8.08]
[1750626710494,21.43688719,129.57,129.54,8.08]
[1750626710721,22.11688719,129.57,129.54,8.08]
[1750626711617,0.68,129.6,129.54,29.51688719]
[1750626711791,40.76653605,129.59,129.54,29.51688719]
[1750626712215,0.68,129.58,129.54,29.51688719]
[1750626713899,0.68,129.58,129.55,21.43688719]
[1750626714094,28.68138719,129.61,129.57,21.43688719]
[1750626714723,7.2445,129.61,129.57,21.43688719]
[1750626714928,28.68138719,129.61,129.56,21.43688719]
[1750626715323,28.68138719,129.61,129.57,21.43688719]
[1750626715627,28.68138719,129.61,129.56,29.15494703]
[1750626716299,28.68138719,129.61,129.57,21.43688719]
[1750626717007,7.2445,129.61,129.57,21.43688719]
[1750626717311,28.68138719,129.61,129.57,21.43688719]
[1750626717719,7.2445,129.61,129.57,21.43688719]
[1750626718941,1.5129,129.63,129.59,21.43688719]
[1750626719247,1.5129,129.63,129.6,21.43688719]
[1750626720636,23.62978719,129.63,129.57,33.71765419]
[1750626720837,0.68,129.62,129.58,21.43688719]
[1750626721020,0.68,129.62,129.57,33.71765419]
[1750626721021,0.68,129.62,129.59,21.43688719]
[1750626721774,6.3982,129.64,129.61,21.43688719]
[1750626721917,7.0782,129.64,129.61,21.43688719]
[1750626722433,7.0782,129.64,129.6,21.43688719]
[1750626722745,21.43688719,129.63,129.59,21.43688719]
[1750626722926,22.11688719,129.61,129.57,108.83688719]
[1750626723131,0.68,129.62,129.58,21.43688719]
[1750626723532,0.68,129.62,129.56,32.28]
[1750626723728,0.68,129.62,129.59,21.43688719]
[1750626724125,0.68,129.62,129.55,26.0]
[1750626724342,2.1887,129.6,129.56,21.43688719]
[1750626724851,23.62558719,129.6,129.54,41.79959157]
[1750626725158,0.68,129.58,129.54,55.51688719]
[1750626725342,22.11688719,129.58,129.54,15.79960535]
[1750626725521,0.68,129.58,129.54,37.23649254]
[1750626726118,1.5087,129.6,129.55,21.43688719]
[1750626726436,0.68,129.59,129.55,21.43688719]
[1750626728145,1.5087,129.6,129.56,21.43688719]
[1750626728449,0.68,129.62,129.58,21.43688719]
[1750626729156,1.6015,129.63,129.59,21.43688719]
[1750626729516,1.6015,129.63,129.6,21.43688719]
[1750626729917,0.68,129.66,129.62,21.43688719]
[1750626730845,8.0414,129.67,129.64,21.43688719]
[1750626731050,8.7214,129.67,129.64,21.43688719]
[1750626731257,8.0414,129.67,129.65,21.43688719]
[1750626731751,1.6015,129.67,129.65,21.43688719]
[1750626731976,30.15828719,129.7,129.66,21.43688719]
[1750626732252,0.68,129.68,129.64,21.43688719]
[1750626732750,0.68,129.68,129.61,33.71545405]
[1750626732952,0.68,129.68,129.65,21.43688719]
[1750626734865,30.19828719,129.7,129.66,21.43688719]
[1750626735054,8.7614,129.7,129.66,21.43688719]
[1750626736873,8.64476721,129.72,129.68,21.43688719]
[1750626737072,9.36476721,129.72,129.68,21.43688719]
[1750626737777,8.64476721,129.72,129.69,21.43688719]
[1750626738074,8.64476721,129.72,129.71,21.43688719]
[1750626738445,8.64476721,129.72,129.68,21.43688719]
[1750626738676,0.72,129.71,129.67,47.43688719]
[1750626739167,0.72,129.71,129.67,29.14875054]
[1750626739473,0.72,129.71,129.68,21.43688719]
[1750626740454,8.64476721,129.72,129.69,21.43688719]
[1750626740653,9.36476721,129.72,129.69,21.43688719]
[1750626741070,8.64476721,129.72,129.66,8.02]
[1750626741370,28.27438719,129.68,129.66,8.02]
[1750626743547,6.8375,129.68,129.66,8.02]
[1750626744363,18.64964886,129.71,129.67,21.43688719]
[1750626744364,25.48714886,129.71,129.67,21.43688719]
[1750626744979,6.8375,129.71,129.67,21.43688719]
[1750626745456,6.1175,129.71,129.68,21.43688719]
[1750626745655,6.1175,129.71,129.69,21.43688719]
[1750626746787,8.64476721,129.72,129.69,21.43688719]
[1750626746998,56.8016544,129.72,129.66,8.02]
[1750626747278,30.0816544,129.72,129.67,21.43688719]
[1750626747450,0.72,129.71,129.68,21.43688719]
[1750626748704,8.64476721,129.72,129.68,21.43688719]
[1750626749103,9.36476721,129.72,129.68,21.43688719]
[1750626749300,9.36476721,129.72,129.69,21.43688719]
[1750626750399,8.64476721,129.72,129.71,21.43688719]
[1750626752211,8.64476721,129.72,129.71,29.14639301]
[1750626752524,0.72,129.83,129.78,26.0]
[1750626752734,0.72,129.86,129.82,21.43688719]
[1750626752882,7.98,129.91,129.85,21.43688719]
[1750626752883,0.72,129.89,129.85,21.43688719]
[1750626753232,9.66672465,129.91,129.84,87.61688719]
[1750626753375,9.66672465,129.91,129.87,21.43688719]
[1750626753579,9.66672465,129.91,129.84,66.18]
[1750626753580,9.66672465,129.91,129.88,21.43688719]
[1750626754193,10.38672465,129.91,129.88,21.43688719]
[1750626754707,9.66672465,129.91,129.9,21.43688719]
[1750626754884,9.66672465,129.91,129.88,21.43688719]
[1750626755211,9.66672465,129.91,129.89,21.43688719]
[1750626755402,9.66672465,129.91,129.9,21.43688719]
[1750626755582,0.72,129.94,129.9,21.43688719]
[1750626755917,0.72,129.94,129.91,21.43688719]
[1750626756207,0.72,129.94,129.9,21.43688719]
[1750626756913,0.72,129.94,129.87,52.94985299]
[1750626757089,21.43688719,129.93,129.89,21.43688719]
[1750626757411,22.15688719,129.9,129.84,37.11835289]
[1750626757620,21.43688719,129.89,129.84,37.11835289]
[1750626757781,22.15688719,129.89,129.84,37.11835289]
[1750626757986,22.15688719,129.91,129.86,21.43688719]
[1750626758297,22.15688719,129.91,129.87,21.43688719]
[1750626758695,0.72,129.91,129.87,21.43688719]
[1750626758899,0.72,129.94,129.9,21.43688719]
[1750626759096,0.72,129.94,129.91,21.43688719]
[1750626759595,6.3199,129.95,129.92,21.43688719]
[1750626759789,6.3199,129.95,129.9,7.96]
[1750626760009,6.3199,129.95,129.93,21.43688719]
[1750626760384,6.3199,129.95,129.93,31.21839128]
[1750626760585,6.3199,129.95,129.92,31.21839128]
[1750626760895,7.0399,129.95,129.92,31.21839128]
[1750626761295,7.0399,129.95,129.86,33.96]
[1750626761296,31.93839128,129.93,129.86,33.96]
[1750626761494,31.21839128,129.91,129.87,31.21839128]
[1750626761703,0.72,129.91,129.87,31.21839128]
[1750626762185,31.21839128,129.91,129.86,39.17839128]
[1750626762392,31.93839128,129.9,129.86,7.96]
[1750626762587,18.64964886,129.92,129.86,7.96]
[1750626762588,31.93839128,129.89,129.86,7.96]
[1750626763108,0.72,129.88,129.86,7.96]
[1750626764321,0.73,129.87,129.86,7.96]
[1750626764518,0.73,129.87,129.8,55.29061201]
[1750626764519,18.64964886,129.86,129.8,40.12]
[1750626764823,31.94839128,129.86,129.81,31.21839128]
[1750626764995,0.73,129.86,129.82,31.21839128]
[1750626765307,37.31009128,129.87,129.81,7.70333712]
[1750626765308,6.0917,129.87,129.84,31.21839128]
[1750626767996,6.0917,129.87,129.84,38.92016667]
[1750626768322,0.73,129.89,129.84,7.70177539]
[1750626768497,0.73,129.89,129.86,31.21839128]
[1750626768701,0.73,129.89,129.85,31.21839128]
[1750626770105,0.73,129.89,129.85,38.91934732]
[1750626770716,0.73,129.89,129.86,31.21839128]
[1750626771509,37.48869128,129.91,129.86,31.21839128]
[1750626771822,0.73,129.93,129.89,31.21839128]
[1750626772128,0.73,129.93,129.9,31.21839128]
[1750626774093,0.73,129.93,129.89,38.91682135]
[1750626774294,0.73,129.92,129.88,31.21839128]
[1750626774729,0.73,129.92,129.89,31.21839128]
[1750626775301,31.21839128,129.94,129.89,31.21839128]
[1750626775716,0.73,129.93,129.89,31.21839128]
[1750626776622,0.73,129.93,129.89,38.91699372]
[1750626776825,0.73,129.93,129.89,31.21839128]
[1750626777033,31.94839128,129.93,129.89,31.21839128]
[1750626777406,44.64964886,129.95,129.9,31.21839128]
[1750626777612,31.94839128,129.94,129.89,31.21839128]
[1750626777806,31.21839128,129.94,129.89,31.21839128]
[1750626778018,31.21839128,129.93,129.89,31.21839128]
[1750626778218,31.94839128,129.94,129.89,31.21839128]
[1750626778629,0.73,129.93,129.89,31.21839128]
[1750626779636,31.94839128,129.93,129.89,31.21839128]
[1750626780016,0.73,129.93,129.89,31.21839128]
[1750626780222,0.73,129.93,129.88,7.69921957]
[1750626780223,0.73,129.92,129.88,21.36119089]
[1750626780424,22.09119089,129.92,129.88,21.36119089]
[1750626780619,21.36119089,129.92,129.87,7.96]
[1750626780827,21.36119089,129.92,129.87,37.02106433]
[1750626781146,0.73,129.92,129.88,21.36119089]
[1750626781521,0.73,129.92,129.88,29.06060277]
[1750626781715,22.09119089,129.95,129.9,21.36119089]
[1750626781915,7.8723,129.96,129.94,21.36119089]
[1750626782128,7.8723,129.96,129.95,21.36119089]
[1750626782338,0.73,129.99,129.95,21.36119089]
[1750626782543,0.73,129.99,129.96,21.36119089]
[1750626782717,0.73,129.99,129.95,21.36119089]
[1750626783239,40.01083975,129.99,129.95,21.36119089]
[1750626783542,0.73,129.98,129.95,21.36119089]
[1750626784055,8.7793,130.0,129.97,21.36119089]
[1750626784355,8.7793,130.0,129.95,21.36119089]
[1750626784356,21.36119089,129.99,129.95,21.36119089]
[1750626784525,0.73,129.98,129.94,21.36119089]
[1750626784725,40.01083975,129.96,129.93,7.92]